bitfinex-derivatives/quotes_SOLF0:USTF0_20260204
["timestamp","ask_amount","ask_price","bid_price","bid_amount"]
[1770171118155,73.427143,98.861,98.787,70.05821225]
[1770171119756,73.427143,98.858,98.787,70.05821225]
[1770171120459,141.8013,98.873,98.787,70.05821225]
[1770171120460,73.427143,98.849,98.787,70.05821225]
[1770171121364,73.427143,98.849,98.77,70.05821225]
[1770171121564,73.427143,98.847,98.77,70.05821225]
[1770171121963,73.427143,98.839,98.77,70.05821225]
[1770171122464,73.427143,98.829,98.753,70.05821225]
[1770171122961,73.427143,98.829,98.754,70.05821225]
[1770171123166,73.427143,98.829,98.756,70.05821225]
[1770171124262,73.427143,98.87,98.784,70.05821225]
[1770171124967,73.427143,98.868,98.793,70.05821225]
[1770171125168,73.427143,98.868,98.795,70.05821225]
[1770171125467,73.427143,98.868,98.797,70.05821225]
[1770171126563,73.427143,98.86,98.779,70.05821225]
[1770171126764,73.427143,98.856,98.779,70.05821225]
[1770171127269,73.427143,98.849,98.779,70.05821225]
[1770171127762,9.1181,98.848,98.779,70.05821225]
[1770171127964,73.427143,98.847,98.779,70.05821225]
[1770171128768,73.427143,98.847,98.75,8.17412273]
[1770171128769,73.427143,98.828,98.741,70.05821225]
[1770171129065,73.427143,98.828,98.743,70.05821225]
[1770171129370,73.427143,98.828,98.745,70.05821225]
[1770171130065,73.427143,98.826,98.748,70.05821225]
[1770171130665,73.427143,98.823,98.748,70.05821225]
[1770171131064,73.427143,98.817,98.748,70.05821225]
[1770171132467,73.427143,98.844,98.748,70.05821225]
[1770171132668,73.427143,98.839,98.75,70.05821225]
[1770171132968,73.427143,98.836,98.753,70.05821225]
[1770171133566,9.1193,98.835,98.754,9.1267]
[1770171133767,73.427143,98.834,98.755,70.05821225]
[1770171134270,73.427143,98.83,98.758,70.05821225]
[1770171134968,73.427143,98.83,98.76,70.05821225]
[1770171135671,73.427143,98.83,98.764,70.05821225]
[1770171135872,73.427143,98.83,98.763,9.1258]
[1770171135873,73.427143,98.83,98.759,70.05821225]
[1770171136874,73.427143,98.817,98.759,70.05821225]
[1770171138267,73.427143,98.835,98.759,79.18441225]
[1770171138467,73.427143,98.835,98.741,141.9897]
[1770171138468,73.427143,98.835,98.766,70.05821225]
[1770171138771,73.427143,98.864,98.782,70.05821225]
[1770171139469,73.427143,98.864,98.767,403.84]
[1770171139470,73.427143,98.845,98.767,70.05821225]
[1770171139673,73.427143,98.842,98.767,70.05821225]
[1770171139866,73.427143,98.828,98.767,70.05821225]
[1770171140470,73.427143,98.821,98.747,70.05821225]
[1770171140675,73.427143,98.821,98.757,75.34634017]
[1770171142274,75.78953688,98.838,98.759,75.34634017]
[1770171143677,75.78953688,98.834,98.761,75.34634017]
[1770171144673,9.1196,98.831,98.764,75.34634017]
[1770171144878,84.90913688,98.831,98.764,75.34634017]
[1770171145277,75.78953688,98.831,98.767,75.34634017]
[1770171145678,75.78953688,98.848,98.767,75.34634017]
[1770171145880,75.78953688,98.848,98.777,75.34634017]
[1770171146778,8.20402222,98.87,98.777,75.34634017]
[1770171146779,75.78953688,98.846,98.777,75.34634017]
[1770171148484,75.78953688,98.846,98.78,75.34634017]
[1770171148679,8.20402222,98.87,98.78,75.34634017]
[1770171148680,9.1173,98.856,98.78,75.34634017]
[1770171148872,84.90683688,98.856,98.78,75.34634017]
[1770171149076,75.78953688,98.889,98.793,75.34634017]
[1770171149272,75.78953688,98.887,98.797,75.34634017]
[1770171149673,75.78953688,98.887,98.802,75.34634017]
[1770171149875,9.1155,98.876,98.802,75.34634017]
[1770171150074,75.78953688,98.887,98.802,75.34634017]
[1770171150281,75.78953688,98.887,98.805,75.34634017]
[1770171150783,75.78953688,98.876,98.805,75.34634017]
[1770171150989,75.78953688,98.876,98.807,75.34634017]
[1770171152381,75.78953688,98.876,98.81,75.34634017]
[1770171153078,75.78953688,98.876,98.813,75.34634017]
[1770171155490,75.78953688,98.876,98.799,75.34634017]
[1770171156088,8.20402222,98.89,98.799,75.34634017]
[1770171156089,75.78953688,98.872,98.799,75.34634017]
[1770171156390,75.78953688,98.872,98.801,75.34634017]
[1770171156888,8.20402222,98.89,98.801,75.34634017]
[1770171156889,75.78953688,98.866,98.801,75.34634017]
[1770171157086,75.78953688,98.889,98.801,75.34634017]
[1770171158389,75.78953688,98.887,98.801,75.34634017]
[1770171158786,75.78953688,98.877,98.803,75.34634017]
[1770171159089,75.78953688,98.877,98.804,403.8]
[1770171159283,75.78953688,98.877,98.805,75.34634017]
[1770171159790,75.78953688,98.877,98.816,75.34634017]
[1770171161389,7.36097073,98.876,98.816,75.34634017]
[1770171161595,75.78953688,98.877,98.816,75.34634017]
[1770171161798,7.36118539,98.876,98.816,75.34634017]
[1770171161986,75.78953688,98.877,98.816,75.34634017]
[1770171162188,7.36075737,98.876,98.816,75.34634017]
[1770171162392,75.78953688,98.877,98.816,75.34634017]
[1770171162592,7.36293116,98.876,98.816,75.34634017]
[1770171162796,75.78953688,98.877,98.816,75.34634017]
[1770171162995,83.15194957,98.876,98.816,75.34634017]
[1770171163196,3.2777346,98.88,98.816,75.34634017]
[1770171163197,75.78953688,98.873,98.816,75.34634017]
[1770171163889,9.1159,98.872,98.816,75.34634017]
[1770171164092,75.78953688,98.869,98.816,75.34634017]
[1770171164800,75.78953688,98.866,98.816,75.34634017]
[1770171165894,3.2777346,98.88,98.816,75.34634017]
[1770171166096,83.15118183,98.879,98.821,75.34634017]
[1770171166296,75.78953688,98.877,98.821,75.34634017]
[1770171166495,3.2777346,98.88,98.821,75.34634017]
[1770171166496,75.78953688,98.875,98.821,75.34634017]
[1770171167498,75.78953688,98.869,98.821,75.34634017]
[1770171170207,75.78953688,98.867,98.812,403.76]
[1770171170505,75.78953688,98.867,98.812,472.36779718]
[1770171170805,9.1171,98.859,98.812,472.36779718]
[1770171171208,75.78953688,98.867,98.813,68.08544331]
[1770171173405,75.57244186,98.861,98.813,68.08544331]
[1770171174007,75.57244186,98.861,98.812,403.76]
[1770171174008,75.57244186,98.851,98.789,76.7938345]
[1770171174212,75.57244186,98.851,98.789,67.6704345]
[1770171174506,75.57244186,98.841,98.789,67.6704345]
[1770171177512,75.57244186,98.841,98.791,73.89122673]
[1770171177714,71.34759704,98.858,98.791,64.76792673]
[1770171178114,71.34759704,98.847,98.791,64.76792673]
[1770171178313,71.34759704,98.847,98.776,64.76792673]
[1770171179812,71.34759704,98.842,98.779,64.46695019]
[1770171180416,71.34759704,98.84,98.779,64.46695019]
[1770171181108,71.34759704,98.827,98.762,65.47289905]
[1770171181711,71.34759704,98.845,98.764,65.47289905]
[1770171181905,71.34759704,98.843,98.766,65.47289905]
[1770171182611,71.34759704,98.843,98.779,65.47289905]
[1770171183007,71.34759704,98.843,98.785,65.26659025]
[1770171183207,71.34759704,98.843,98.786,65.26659025]
[1770171184815,71.34759704,98.843,98.786,74.39029025]
[1770171189322,71.34759704,98.841,98.786,65.26659025]
[1770171189522,71.34759704,98.839,98.785,253.82]
[1770171189826,71.34759704,98.839,98.787,9.1236]
[1770171190115,71.34759704,98.839,98.788,67.80203208]
[1770171196727,7.33786128,98.838,98.788,67.80203208]
[1770171196925,7.33786128,98.837,98.788,67.80203208]
[1770171197124,7.33786128,98.836,98.788,67.80203208]
[1770171197325,71.34759704,98.839,98.788,67.80203208]
[1770171198326,7.3378037,98.838,98.788,67.80203208]
[1770171198527,71.34759704,98.839,98.788,67.80203208]
[1770171199426,71.34759704,98.839,98.791,67.6083631]
[1770171199630,71.34759704,98.854,98.791,67.6083631]
[1770171199820,71.34759704,98.852,98.791,67.6083631]
[1770171200024,71.34759704,98.852,98.793,67.6083631]
[1770171200221,71.34759704,98.88,98.82,3.27972611]
[1770171200429,71.34759704,98.88,98.831,67.6083631]
[1770171202025,74.62732315,98.88,98.821,241.62]
[1770171202225,74.62732315,98.88,98.82,3.27972611]
[1770171202226,72.10210954,98.849,98.791,69.12765322]
[1770171202931,9.1181,98.847,98.791,69.12765322]
[1770171203131,72.10210954,98.849,98.791,69.12765322]
[1770171204632,81.22010954,98.849,98.791,69.12765322]
[1770171205135,72.10210954,98.849,98.791,69.12765322]
[1770171205734,81.22010954,98.849,98.791,69.12765322]
[1770171205934,3.27955985,98.84,98.791,69.12765322]
[1770171206135,75.38166939,98.84,98.791,69.12765322]
[1770171206530,72.10210954,98.84,98.791,69.12765322]
[1770171206736,72.10210954,98.838,98.789,403.84]
[1770171207138,72.10210954,98.835,98.789,403.84]
[1770171207533,72.10210954,98.829,98.776,69.23044064]
[1770171209134,72.10210954,98.829,98.768,403.82]
[1770171209135,72.10210954,98.829,98.781,68.62141873]
[1770171209434,72.10210954,98.819,98.765,68.62141873]
[1770171211138,75.38166939,98.79,98.735,68.02848648]
[1770171212238,72.10210954,98.808,98.741,68.02848648]
[1770171212540,72.10210954,98.808,98.751,68.02848648]
[1770171212740,72.10210954,98.808,98.753,67.50256069]
[1770171213345,3.27955985,98.8,98.753,67.50256069]
[1770171214456,72.10210954,98.801,98.753,67.50256069]
[1770171215744,84.50416939,98.8,98.742,403.86]
[1770171215947,72.10210954,98.8,98.743,66.97911455]
[1770171216443,81.22460954,98.8,98.743,66.97911455]
[1770171217648,72.10210954,98.8,98.743,66.97911455]
[1770171219140,81.22490954,98.797,98.743,66.97911455]
[1770171219340,75.38166939,98.79,98.742,403.86]
[1770171219536,72.10210954,98.79,98.728,68.22714529]
[1770171219747,72.10210954,98.79,98.74,71.50670514]
[1770171220950,151.11708573,98.847,98.761,68.77058329]
[1770171220951,72.10210954,98.806,98.761,68.77058329]
[1770171221148,72.10210954,98.824,98.771,68.77058329]
[1770171221350,72.10210954,98.824,98.772,68.77058329]
[1770171223350,72.10210954,98.824,98.772,472.71058329]
[1770171223855,72.10210954,98.824,98.757,70.10574123]
[1770171224059,72.10210954,98.824,98.759,70.10574123]
[1770171224353,72.10210954,98.822,98.759,70.10574123]
[1770171225549,72.10210954,98.807,98.747,403.94]
[1770171225747,72.10210954,98.807,98.724,70.35782692]
[1770171225950,72.10210954,98.792,98.709,70.35782692]
[1770171226154,72.10210954,98.782,98.712,70.35782692]
[1770171227059,81.22630954,98.782,98.712,70.35782692]
[1770171227955,81.22630954,98.782,98.71,403.94]
[1770171227956,72.10210954,98.772,98.71,403.94]
[1770171228155,72.10210954,98.772,98.694,69.94438799]
[1770171228357,8.20133806,98.76,98.694,69.94438799]
[1770171228557,72.10210954,98.741,98.66,69.94438799]
[1770171228759,72.10210954,98.741,98.68,403.96]
[1770171229454,9.1268,98.754,98.681,70.11689335]
[1770171229863,72.10210954,98.761,98.683,70.11689335]
[1770171230556,72.10210954,98.761,98.694,70.11689335]
[1770171231364,75.42490024,98.759,98.682,404.0]
[1770171231561,75.42490024,98.758,98.682,404.0]
[1770171232359,75.42490024,98.74,98.682,404.0]
[1770171233767,75.42490024,98.738,98.671,404.08]
[1770171234067,75.42490024,98.738,98.67,70.32933819]
[1770171234262,75.42490024,98.738,98.67,79.46373819]
[1770171234460,75.42490024,98.738,98.672,70.50308331]
[1770171235160,75.42490024,98.754,98.679,70.04097612]
[1770171235367,75.42490024,98.754,98.652,142.1184]
[1770171235368,75.42490024,98.754,98.681,70.04097612]
[1770171237667,75.42490024,98.754,98.689,70.32803779]
[1770171241870,75.42490024,98.754,98.691,70.55441799]
[1770171242673,75.42490024,98.754,98.692,9.1324]
[1770171242870,75.42490024,98.754,98.693,70.55441799]
[1770171243873,3.28584326,98.75,98.693,70.55441799]
[1770171244270,70.44533592,98.739,98.693,70.55441799]
[1770171244475,70.44533592,98.739,98.69,404.16]
[1770171248978,73.73117918,98.72,98.665,71.4276693]
[1770171249475,73.73117918,98.72,98.653,404.2]
[1770171249476,73.73117918,98.7,98.653,404.2]
[1770171250774,3.28584326,98.7,98.654,71.18582035]
[1770171250974,3.28584326,98.72,98.661,71.18582035]
[1770171251478,3.28584326,98.72,98.663,71.18582035]
[1770171252280,3.28584326,98.72,98.666,71.18582035]
[1770171253676,70.44533592,98.728,98.67,80.28665695]
[1770171254677,79.57473592,98.725,98.67,71.15215695]
[1770171254882,3.28584326,98.72,98.67,71.15215695]
[1770171255281,141.9764,98.751,98.66,407.56584326]
[1770171255282,70.44533592,98.699,98.66,404.28]
[1770171255478,3.28584326,98.69,98.651,71.16638653]
[1770171255683,3.28584326,98.69,98.631,71.16638653]
[1770171255879,3.28584326,98.69,98.633,71.16638653]
[1770171256181,70.44533592,98.696,98.637,9.1375]
[1770171256383,70.44533592,98.696,98.638,71.16638653]
[1770171256880,70.44533592,98.709,98.64,74.45222979]
[1770171257474,70.44533592,98.709,98.651,70.64604661]
[1770171257676,70.44533592,98.709,98.653,70.64604661]
[1770171258784,9.131,98.708,98.653,70.64604661]
[1770171258985,79.57633592,98.708,98.653,70.64604661]
[1770171259187,73.73117918,98.7,98.652,404.3]
[1770171259784,3.28584326,98.69,98.652,404.3]
[1770171259984,79.57723592,98.699,98.652,404.3]
[1770171261587,3.28584326,98.68,98.637,70.68531157]
[1770171261881,3.28584326,98.67,98.637,70.68531157]
[1770171262181,3.28584326,98.67,98.61,3.28584326]
[1770171262182,77.75189969,98.67,98.621,70.86071382]
[1770171262486,74.46605643,98.67,98.621,70.86071382]
[1770171263579,3.29107479,98.68,98.621,70.86071382]
[1770171263885,74.46605643,98.689,98.621,70.86071382]
[1770171264085,3.29107479,98.68,98.621,70.86071382]
[1770171264382,3.29107479,98.67,98.621,70.86071382]
[1770171267986,74.46605643,98.678,98.621,70.86071382]
[1770171268190,74.46605643,98.678,98.624,70.82608262]
[1770171269993,9.1339,98.677,98.624,70.82608262]
[1770171270192,74.46605643,98.678,98.624,70.82608262]
[1770171271486,3.29107479,98.66,98.616,404.4]
[1770171271794,74.46605643,98.649,98.595,68.80077418]
[1770171272493,74.46605643,98.646,98.595,68.80077418]
[1770171277400,74.46605643,98.66,98.601,67.21843327]
[1770171277694,3.29107479,98.67,98.614,67.21843327]
[1770171278008,74.46605643,98.675,98.621,67.21843327]
[1770171278499,74.46605643,98.689,98.631,67.21843327]
[1770171278891,74.46605643,98.679,98.631,67.21843327]
[1770171281498,74.46605643,98.727,98.635,68.29835767]
[1770171281700,74.46605643,98.719,98.661,68.29835767]
[1770171282302,74.46605643,98.719,98.663,68.29835767]
[1770171282501,74.46605643,98.719,98.671,68.29835767]
[1770171283507,74.46605643,98.73,98.671,68.29835767]
[1770171283707,74.46605643,98.73,98.68,3.29107479]
[1770171283909,74.46605643,98.73,98.671,68.29835767]
[1770171284105,77.75713122,98.73,98.671,68.29835767]
[1770171284300,77.75713122,98.72,98.671,68.29835767]
[1770171285203,77.75713122,98.72,98.66,407.77107479]
[1770171285508,141.9903,98.742,98.66,404.48]
[1770171285509,74.46605643,98.709,98.66,404.48]
[1770171286111,142.0043,98.732,98.64,3.29107479]
[1770171286112,74.46605643,98.699,98.64,404.48]
[1770171286508,74.46605643,98.689,98.64,404.48]
[1770171288004,9.132,98.697,98.64,404.48]
[1770171288005,77.75713122,98.68,98.64,404.48]
[1770171289207,74.46605643,98.695,98.641,64.09942936]
[1770171291216,142.0183,98.722,98.641,64.09942936]
[1770171291217,76.21768786,98.689,98.641,64.09942936]
[1770171294614,76.21768786,98.705,98.651,63.29751526]
[1770171295220,79.50876265,98.72,98.66,66.01999582]
[1770171295920,73.06301179,98.718,98.66,62.72892103]
[1770171296521,73.06301179,98.715,98.66,62.72892103]
[1770171296719,3.29107479,98.71,98.66,62.72892103]
[1770171297324,73.06301179,98.715,98.66,62.72892103]
[1770171297820,73.06301179,98.699,98.641,62.52907005]
[1770171299521,9.1323,98.694,98.641,62.52907005]
[1770171300221,9.32866013,98.807,98.711,43.92581923]
[1770171300525,73.06301179,98.811,98.75,3.29107479]
[1770171300719,73.06301179,98.811,98.74,43.92581923]
[1770171300921,141.8317,98.852,98.771,44.07702311]
[1770171301119,73.06301179,98.849,98.781,44.07702311]
[1770171301313,73.06301179,98.849,98.8,3.29107479]
[1770171301514,1.76050549,98.91,98.81,3.29107479]
[1770171301515,73.06301179,98.869,98.81,3.29107479]
[1770171301719,73.06301179,98.869,98.8,3.29107479]
[1770171301923,73.06301179,98.839,98.774,367.08]
[1770171302123,3.29107479,98.82,98.774,367.08]
[1770171302323,3.29107479,98.81,98.75,44.07702311]
[1770171302522,3.29107479,98.8,98.751,308.58]
[1770171303023,3.29107479,98.79,98.751,308.58]
[1770171303219,3.29107479,98.79,98.734,404.36]
[1770171303419,3.29107479,98.78,98.72,404.32]
[1770171303624,3.29107479,98.77,98.72,404.32]
[1770171304419,73.06301179,98.791,98.72,404.32]
[1770171304619,73.06301179,98.779,98.688,41.97539203]
[1770171304921,73.06301179,98.779,98.69,41.97539203]
[1770171305223,73.06301179,98.779,98.695,37.1106991]
[1770171305518,8.21195085,98.77,98.695,37.1106991]
[1770171305727,73.06301179,98.769,98.695,37.1106991]
[1770171306516,73.06301179,98.769,98.699,37.1106991]
[1770171306719,73.06301179,98.769,98.703,142.0448]
[1770171306924,73.06301179,98.769,98.704,37.06384666]
[1770171308121,73.06301179,98.769,98.705,37.06384666]
[1770171308422,9.1236,98.789,98.707,37.06384666]
[1770171308423,73.06301179,98.789,98.707,37.06384666]
[1770171310824,73.06301179,98.789,98.707,46.19484666]
[1770171312028,73.06301179,98.789,98.707,37.06384666]
[1770171312728,73.06301179,98.787,98.707,37.06384666]
[1770171313430,73.06301179,98.746,98.67,42.01683244]
[1770171313830,73.06301179,98.743,98.67,42.01683244]
[1770171314932,73.06301179,98.74,98.67,42.01683244]
[1770171315728,73.06301179,98.737,98.67,42.01683244]
[1770171316227,8.21195085,98.73,98.653,9.1361]
[1770171316433,73.06301179,98.729,98.655,39.01841724]
[1770171316932,73.06301179,98.725,98.655,39.01841724]
[1770171317730,73.06301179,98.722,98.655,39.01841724]
[1770171321238,73.06301179,98.722,98.657,40.74770302]
[1770171321431,76.8505716,98.741,98.665,40.74770302]
[1770171322034,76.8505716,98.741,98.677,40.74770302]
[1770171322736,76.8505716,98.741,98.68,40.74770302]
[1770171324135,76.8505716,98.729,98.648,40.87171495]
[1770171325435,9.1292,98.727,98.648,40.87171495]
[1770171325637,76.8505716,98.726,98.648,40.87171495]
[1770171325831,76.8505716,98.709,98.626,40.58457236]
[1770171326033,76.8505716,98.703,98.626,40.58457236]
[1770171326338,76.8505716,98.703,98.627,40.58457236]
[1770171327539,76.8505716,98.703,98.63,39.97085411]
[1770171328742,76.8505716,98.703,98.635,39.97085411]
[1770171329138,76.8505716,98.721,98.635,39.97085411]
[1770171329442,76.8505716,98.721,98.639,39.44177525]
[1770171330136,76.8505716,98.706,98.639,39.44177525]
[1770171330838,76.8505716,98.704,98.633,246.52]
[1770171331143,76.8505716,98.689,98.633,246.52]
[1770171331339,76.8505716,98.689,98.622,39.53680449]
[1770171331840,8.21668543,98.69,98.622,39.53680449]
[1770171331841,76.8505716,98.686,98.622,39.53680449]
[1770171332335,76.8505716,98.744,98.622,39.53680449]
[1770171332535,76.8505716,98.773,98.697,39.53680449]
[1770171332735,76.8505716,98.8,98.701,39.53680449]
[1770171332937,76.8505716,98.796,98.707,38.99386465]
[1770171333342,76.8505716,98.796,98.721,38.99386465]
[1770171333542,76.8505716,98.796,98.724,38.99386465]
[1770171335138,76.8505716,98.796,98.725,339.34]
[1770171335750,76.8505716,98.796,98.725,384.25697331]
[1770171336852,76.8505716,98.796,98.726,45.85800338]
[1770171337043,141.8788,98.819,98.686,45.85800338]
[1770171337044,76.8505716,98.791,98.686,45.85800338]
[1770171337251,76.8505716,98.781,98.688,45.85800338]
[1770171337446,9.1255,98.767,98.689,9.1327]
[1770171337649,76.8505716,98.766,98.69,45.85800338]
[1770171338253,76.8505716,98.766,98.703,45.85800338]
[1770171338656,76.8505716,98.784,98.708,45.85800338]
[1770171338856,76.8505716,98.784,98.707,9.1311]
[1770171338857,76.8505716,98.784,98.71,44.45423569]
[1770171339259,76.8505716,98.771,98.71,44.45423569]
[1770171340760,76.8505716,98.769,98.71,44.45423569]
[1770171340961,76.8505716,98.769,98.643,154.6465331]
[1770171340962,76.8505716,98.855,98.763,44.17310273]
[1770171341256,76.8505716,98.855,98.771,44.17310273]
[1770171341856,76.8505716,98.853,98.771,44.17310273]
[1770171343056,141.8254,98.857,98.771,44.17310273]
[1770171343057,76.8505716,98.849,98.771,44.17310273]
[1770171344763,76.8505716,98.839,98.771,44.17310273]
[1770171345158,76.8505716,98.834,98.748,52.08487122]
[1770171345358,76.8505716,98.823,98.749,173.36]
[1770171346065,76.8505716,98.816,98.749,173.36]
[1770171346268,76.8505716,98.816,98.75,52.08487122]
[1770171348765,76.8505716,98.814,98.75,52.08487122]
[1770171350865,71.39567052,98.811,98.75,52.08487122]
[1770171351771,71.39567052,98.809,98.75,52.08487122]
[1770171353974,71.39567052,98.807,98.742,404.04]
[1770171354565,9.1229,98.796,98.742,404.04]
[1770171354873,80.51857052,98.796,98.742,404.04]
[1770171355070,80.51857052,98.796,98.733,50.51854862]
[1770171357376,71.39567052,98.796,98.733,50.51854862]
[1770171358780,70.84387157,98.793,98.733,50.51854862]
[1770171359879,79.96707157,98.793,98.733,50.51854862]
[1770171361484,70.84387157,98.83,98.735,50.22232465]
[1770171362284,8.21668543,98.85,98.73,8.21668543]
[1770171362285,70.84387157,98.825,98.753,50.22232465]
[1770171362584,70.84387157,98.842,98.753,50.22232465]
[1770171362884,70.84387157,98.829,98.755,50.31648102]
[1770171363082,70.84387157,98.823,98.748,404.04]
[1770171363276,70.84387157,98.813,98.748,404.04]
[1770171364287,70.84387157,98.813,98.749,50.31648102]
[1770171365683,70.84387157,98.813,98.751,51.65893408]
[1770171366180,70.84387157,98.813,98.753,9.1268]
[1770171366389,141.8529,98.837,98.735,404.02]
[1770171366390,70.84387157,98.811,98.735,404.02]
[1770171366682,70.84387157,98.811,98.731,51.65893408]
[1770171366683,70.84387157,98.811,98.736,404.02]
[1770171367083,70.84387157,98.811,98.737,51.76382344]
[1770171367687,141.8684,98.827,98.737,51.76382344]
[1770171367688,70.84387157,98.807,98.737,51.76382344]
[1770171368585,70.84387157,98.807,98.741,51.76382344]
[1770171369185,70.84387157,98.807,98.743,51.21870877]
[1770171369686,70.84387157,98.807,98.744,9.1276]
[1770171369987,70.84387157,98.807,98.745,51.21870877]
[1770171370487,70.84387157,98.807,98.75,51.21870877]
[1770171371685,70.84387157,98.807,98.751,9.1269]
[1770171371886,141.8084,98.868,98.76,51.34971883]
[1770171371887,70.84387157,98.841,98.76,51.34971883]
[1770171372084,141.795,98.878,98.774,51.34971883]
[1770171372085,70.84387157,98.858,98.774,51.34971883]
[1770171372386,70.84387157,98.858,98.77,8.21668543]
[1770171372387,70.84387157,98.858,98.778,51.34971883]
[1770171372986,70.84387157,98.891,98.798,51.48407876]
[1770171373184,179.0,98.978,98.77,8.21668543]
[1770171373185,70.84387157,98.923,98.844,51.48407876]
[1770171373391,70.84387157,98.923,98.84,8.21668543]
[1770171374088,70.84387157,98.943,98.861,141.8174]
[1770171374284,70.84387157,98.943,98.862,272.42]
[1770171374784,70.84387157,98.943,98.864,9.1165]
[1770171374981,70.84387157,98.943,98.864,150.9301]
[1770171375378,70.84387157,98.943,98.867,51.86250328]
[1770171376987,70.84387157,98.943,98.871,59.38019275]
[1770171377184,141.6308,98.992,98.859,141.8205]
[1770171377185,70.84387157,98.979,98.884,50.26439275]
[1770171377389,70.84387157,98.979,98.886,50.26439275]
[1770171377978,70.84387157,98.977,98.893,50.26439275]
[1770171378580,70.84387157,98.961,98.893,50.26439275]
[1770171379885,9.1078,98.96,98.893,50.26439275]
[1770171380190,70.84387157,98.959,98.893,50.26439275]
[1770171381486,75.73741805,98.955,98.875,47.42761167]
[1770171381697,75.73741805,98.955,98.876,403.68]
[1770171381994,75.73741805,98.95,98.876,403.68]
[1770171383394,75.73741805,98.95,98.877,45.92465085]
[1770171383690,75.73741805,98.95,98.88,45.92465085]
[1770171384084,75.73741805,98.95,98.882,45.24807993]
[1770171384287,9.1061,98.979,98.87,141.8052]
[1770171384288,75.73741805,98.978,98.884,45.24807993]
[1770171385191,75.73741805,98.978,98.898,9.1134]
[1770171385401,75.73741805,98.978,98.899,44.47850364]
[1770171385592,75.73741805,98.976,98.899,44.47850364]
[1770171387591,9.1064,98.975,98.899,44.47850364]
[1770171387790,75.73741805,98.974,98.899,44.47850364]
[1770171388198,75.73741805,98.974,98.903,9.1129]
[1770171388590,75.73741805,98.974,98.904,42.6143007]
[1770171389397,75.73741805,98.974,98.907,9.1126]
[1770171389594,75.73741805,98.974,98.907,52.92715412]
[1770171389993,8.17902605,98.99,98.918,9.1115]
[1770171390200,75.73741805,98.993,98.919,43.1740275]
[1770171390397,75.73741805,98.993,98.921,43.1740275]
[1770171390701,75.73741805,98.993,98.923,43.1740275]
[1770171390890,75.73741805,99.029,98.928,40.73652157]
[1770171391092,75.73741805,99.029,98.931,40.73652157]
[1770171391491,75.73741805,99.029,98.933,40.73652157]
[1770171391693,75.73741805,99.02,98.951,40.73652157]
[1770171392002,75.73741805,99.02,98.932,403.5]
[1770171392200,75.73741805,99.02,98.933,40.1181605]
[1770171392799,75.73741805,99.008,98.933,49.2283605]
[1770171393703,75.73741805,99.006,98.933,49.2283605]
[1770171394903,75.73741805,99.004,98.933,40.1181605]
[1770171395804,75.73741805,99.002,98.933,40.1181605]
[1770171396003,141.6252,98.996,98.915,45.18101545]
[1770171396201,75.73741805,98.989,98.915,45.18101545]
[1770171396404,8.17902605,98.99,98.915,45.18101545]
[1770171396405,75.73741805,98.982,98.915,45.18101545]
[1770171397496,75.73741805,98.999,98.915,45.18101545]
[1770171397699,75.73741805,98.999,98.928,44.58879235]
[1770171397910,75.73741805,98.999,98.943,9.1092]
[1770171398105,75.73741805,98.999,98.916,403.36]
[1770171398106,75.73741805,98.999,98.944,43.98095498]
[1770171398307,75.73741805,98.999,98.924,141.7277]
[1770171398308,75.73741805,99.017,98.946,43.98095498]
[1770171398508,75.73741805,99.017,98.948,43.98095498]
[1770171398910,8.17902605,99.01,98.945,403.36]
[1770171399105,75.73741805,99.006,98.945,403.36]
[1770171399304,75.73741805,99.006,98.945,446.36565577]
[1770171399505,75.73741805,99.006,98.946,43.00565577]
[1770171400604,75.73741805,99.006,98.951,42.41312882]
[1770171401809,75.73741805,99.006,98.952,49.39044919]
[1770171402011,75.73741805,99.023,98.952,49.39044919]
[1770171402211,75.73741805,99.023,98.945,403.36]
[1770171402212,75.73741805,99.039,98.975,40.28204919]
[1770171402409,75.73741805,99.039,98.977,40.28204919]
[1770171403418,75.73741805,99.039,98.984,39.69314345]
[1770171404010,75.73741805,99.039,98.969,403.28]
[1770171404511,75.73741805,99.033,98.931,39.13219209]
[1770171404717,75.73741805,99.033,98.933,39.13219209]
[1770171405809,75.73741805,99.02,98.949,38.19862447]
[1770171406719,75.73741805,99.015,98.949,38.19862447]
[1770171407213,9.1032,99.01,98.949,38.19862447]
[1770171407412,75.73741805,99.009,98.949,38.19862447]
[1770171407611,75.73741805,99.009,98.93,46.50395469]
[1770171407917,75.73741805,98.995,98.93,449.72395469]
[1770171408516,75.73741805,98.995,98.931,45.93251493]
[1770171408815,75.73741805,98.995,98.933,55.04271493]
[1770171410114,75.73741805,98.995,98.93,403.22]
[1770171410315,75.73741805,98.986,98.921,403.22]
[1770171411015,64.24648789,98.984,98.921,403.22]
[1770171411221,64.24648789,98.979,98.899,44.64513516]